[Event "European Women Blitz-ch 2024"]
[Site "Monaco"]
[Date "2025.01.10"]
[Round "5.10"]
[White "Shvedova, Alexandra"]
[Black "Roebers, Eline"]
[Result "0-1"]
[Annotator "TA"]
[ECO "B45"]
[WhiteElo "2266"]
[BlackElo "2381"]
[PlyCount "70"]
[EventDate "2025.01.06"]
[EventType "swiss"]
[EventCountry "MNC"]
[SourceTitle "playchess.com"]
[Source "ChessBase"]
[SourceQuality "1"]
[TimeControl "180+2"]

{[%evp 12,70,41,35,19,-31,16,0,27,-10,3,-8,9,10,12,2,2,-25,0,-1,36,40,43,46,52,47,54,68,104,96,137,-50,100,104,106,76,76,63,63,58,80,0,50,0,66,14,10,0,0,-189,-190,-175,-156,-254,-239,-464,-456,-451,-455,-427,-395]} 1. e4 {[%emt 0:00:01]} c5 {[%emt 0:00:00]} 2. Nf3 {[%emt 0:00:02][%cal Bg1f3,Bf3d4,Bd4b5,Bb5d6][%mdl 32]} Nc6 {[%emt 0:00:01]} 3. d4 {[%emt 0:00:01]} cxd4 {[%emt 0:00:01]} 4. Nxd4 {[%emt 0:00:02]} Nf6 {[%emt 0:00:00]} 5. Nc3 {[%emt 0:00:02]} e6 {[%emt 0:00:01]} 6. Ndb5 {[%emt 0:00:03]} Bc5 {[%emt 0:00:03]} 7. Bf4 {[%emt 0:00:29]} (7. Nd6+ Ke7 8. Bf4 e5 9. Nf5+) 7... O-O {[%emt 0:00:01]} 8. Be2 {[%emt 0:00:11]} (8. Bc7 $11 Qe7 9. Bd6 Bxd6 10. Qxd6) 8... a6 {[%emt 0:00:18]} (8... d5 $15 {is superior.}) 9. Nd6 {[%emt 0:00:16]} b5 {[%emt 0:00:02]} 10. a3 {[%emt 0:00:10]} Qb6 {[%emt 0:00:50]} 11. O-O {[%emt 0:00:06]} Nd4 {[%emt 0:00:12]} (11... Bd4 {is interesting.} 12. Qd3 Ne5 13. Qg3 Ng6) 12. Nxc8 {[%emt 0:00:28]} Raxc8 {[%emt 0:00:09]} 13. Bd3 {[%emt 0:00:06]} d6 {[%emt 0:00:15]} 14. Qd2 {[%emt 0:00:04] Threatens to win with b4.} Qb8 {[%emt 0:00:19]} 15. Ne2 {[%emt 0:00:16]} Nxe2+ {[%emt 0:00:05]} 16. Qxe2 {[%emt 0:00:01]} Nd7 {[%emt 0:00:02]} 17. a4 {[%emt 0:00:27]} bxa4 {[%emt 0:00:13]} 18. Bxa6 {[%emt 0:00:01]} Rc7 {[%emt 0:00:02]} 19. Bb5 {[%emt 0:00:12]} Rb7 {[%emt 0:00:06]} 20. Bxa4 {[%emt 0:00:02] A strong pair of Bishops.} Bd4 {[%emt 0:00:18]} 21. c3 $2 {[%emt 0:00:07]} (21. Bc6 $16 Ra7 22. c3 (22. Rxa7 Qxa7 23. Bxd6 Rd8 $18)) 21... Be5 {[%emt 0:00:11]} (21... Rxb2 $15 {keeps the upper hand.} 22. Qe1 (22. Bd2 Bxc3 23. Qd3 Bxd2 $17) 22... Be5) 22. Bxe5 $16 {[%emt 0:00:10]} Nxe5 {[%emt 0:00:05]} 23. b4 {[%emt 0:00:04]} Rc8 {[%emt 0:00:01]} 24. Rfc1 {[%emt 0:00:01]} Rbc7 {[%emt 0:00:04]} 25. Qe3 {[%emt 0:00:11]} Nc4 {[%emt 0:00:03]} 26. Qe2 {[%emt 0:00:01]} (26. Qd4 $16) 26... Nb6 {[%emt 0:00:12]} (26... Ne5 $11) 27. Qe3 {[%emt 0:00:08]} (27. Qd2 $14) 27... d5 {[%emt 0:00:02]} (27... Nc4 $11 28. Qd4 Qb6) 28. Bb3 {[%emt 0:00:05]} ({White should try} 28. Bb5 $14) 28... dxe4 $11 {[%emt 0:00:03]} 29. g3 {[%emt 0:00:05]} Nc4 $36 {[%emt 0:00:06][%mdl 2048] Black has the initiative.} 30. Qxe4 $2 {[%emt 0:00:10]} (30. Qf4 $11) 30... Nd2 $1 $19 {[%emt 0:00:00][%csl LRb3,LRc3,LRe4]} 31. Qc2 {[%emt 0:00:00] [#]} Nf3+ $1 {[%emt 0:00:02]} 32. Kg2 {[%emt 0:00:00]} (32. Kh1 $17) 32... Qb7 {[%emt 0:00:01]} 33. Kf1 $2 {[%emt 0:00:00] Repels Ne1} (33. Qa2) 33... Nxh2+ {[%emt 0:00:01]} 34. Kg1 {[%emt 0:00:01]} Nf3+ {[%emt 0:00:01]} 35. Kf1 {[%emt 0:00:00]} Nd4 {[%emt 0:00:06]} 0-1

[Event "European Women Blitz-ch 2024"]
[Site "Monaco"]
[Date "2025.01.10"]
[Round "5.11"]
[White "Kanyamarala, Trisha"]
[Black "Cramling Bellon, Anna"]
[Result "1-0"]
[Annotator "TA"]
[ECO "D47"]
[WhiteElo "2158"]
[BlackElo "2052"]
[PlyCount "43"]
[EventDate "2025.01.06"]
[EventType "swiss"]
[EventCountry "MNC"]
[SourceTitle "playchess.com"]
[Source "ChessBase"]
[SourceQuality "1"]
[TimeControl "180+2"]

{[%evp 16,43,-8,-8,41,49,84,59,160,145,126,94,216,211,214,205,727,730,676,668,2187,29976,29976,6079,29989,29990,29992,29988,29992,29993]} 1. d4 {[%emt 0:00:01]} d5 {[%emt 0:00:01]} 2. c4 {[%emt 0:00:01]} e6 {[%emt 0:00:01]} 3. Nf3 {[%emt 0:00:04]} Nf6 {[%emt 0:00:02]} 4. Nc3 {[%emt 0:00:01]} c6 {[%emt 0:00:06]} 5. e3 {[%emt 0:00:01]} Nbd7 {[%emt 0:00:10]} 6. Bd3 {[%emt 0:00:02]} dxc4 {[%emt 0:00:01]} 7. Bxc4 {[%emt 0:00:01]} b5 {[%emt 0:00:01]} 8. Bb3 {[%emt 0:00:01]} Bb7 {[%emt 0:00:08]} 9. O-O {[%emt 0:00:03]} a6 {[%emt 0:00:14]} (9... Be7 $11 {might be stronger.}) 10. e4 $14 {[%emt 0:00:06]} b4 {[%emt 0:00:04]} 11. Na4 {[%emt 0:00:05]} Nxe4 {[%emt 0:00:05]} (11... Be7 $14) 12. Re1 $16 {[%emt 0:00:05]} Nef6 {[%emt 0:00:05]} 13. Ng5 $1 {[%emt 0:00:26] White is more active.} Nd5 {[%emt 0:00:43] [#]} (13... Be7 $16) 14. Qh5 $1 $18 {[%emt 0:00:08][%csl Gg5,LRe6,LRf7,LRh7][%cal Rh5f7]} g6 {[%emt 0:01:49] [#]} 15. Qh3 $1 $40 {[%emt 0:00:23][%cal Ob3d5][%mdl 128] Bxd5! is the strong threat. White has strong attack.} Be7 $2 {[%emt 0:00:00] [#]} (15... N7f6 16. Nxe6 fxe6) 16. Nxf7 $1 {[%emt 0:00:41][%mdl 512]} Kxf7 {[%emt 0:00:00]} 17. Qxe6+ {[%emt 0:00:01]} Ke8 {[%emt 0:00:00]} 18. Bxd5 {[%emt 0:00:02]} cxd5 {[%emt 0:00:00]} 19. Bg5 {[%emt 0:00:03][%cal Bc1g5,Bg5e7,Be7d8][%mdl 32]} Bc8 {[%emt 0:00:03]} 20. Bxe7 {[%emt 0:00:15] Black is weak on the dark squares} Nf8 {[%emt 0:00:03]} 21. Qe5 {[%emt 0:00:22]} Rg8 {[%emt 0:00:03]} 22. Bxd8+ {[%emt 0:00:04]} 1-0

[Event "European Women Blitz-ch 2024"]
[Site "Monaco"]
[Date "2025.01.10"]
[Round "5.12"]
[White "Bulmaga, Irina"]
[Black "Savina, Anastasia"]
[Result "0-1"]
[Annotator "TA"]
[ECO "C45"]
[WhiteElo "2386"]
[BlackElo "2318"]
[PlyCount "108"]
[EventDate "2025.01.06"]
[EventType "swiss"]
[EventCountry "MNC"]
[SourceTitle "playchess.com"]
[Source "ChessBase"]
[SourceQuality "1"]
[TimeControl "180+2"]

{[%evp 12,108,13,-12,-15,-6,2,-33,-37,-42,-39,-174,-170,-212,-130,-146,-131,-237,-121,-229,-193,-189,338,-241,-230,-214,66,-41,-12,-10,-10,-16,0,-557,-558,-669,-628,-629,-643,-669,-662,-922,-706,-797,-543,-551,-17,-2,-2,-6,-25,-8,0,-20,-12,-38,-41,-55,-13,-41,-41,-68,-53,-133,-132,-135,-138,-133,-98,-110,-105,-139,-101,-97,-89,-644,-632,-6430,-6211,-29959,-29962,-29962,-29963,-29955,-9919,-29972,-29972,-29975,-29976,-29976,-29974,-29980,-29981,-29982,-29983,-29983,-29984,-29985,-29986]} 1. e4 {[%emt 0:00:02]} e5 {[%emt 0:00:02]} 2. Nf3 {[%emt 0:00:02]} Nc6 {[%emt 0:00:01]} 3. d4 {[%emt 0:00:01]} exd4 {[%emt 0:00:03]} 4. Nxd4 {[%emt 0:00:01]} Qf6 {[%emt 0:00:06]} 5. Be3 {[%emt 0:00:02]} Bc5 {[%emt 0:00:07]} 6. c3 {[%emt 0:00:01]} d6 {[%emt 0:00:09]} 7. Bc4 {[%emt 0:00:30]} (7. Be2 {simplifies} Nge7 8. O-O O-O 9. Nxc6 Nxc6 10. Bxc5 dxc5 11. f4) 7... Qg6 {[%emt 0:00:10][%csl LRe4,LRg2]} 8. O-O $1 {[%emt 0:00:11]} Ne5 {[%emt 0:00:08][%cal Oc8h3]} 9. Be2 {[%emt 0:00:26] Threatens to win with f4.} Bh3 {[%emt 0:00:11][%csl Gh3][%cal Rg6g2]} 10. Bf3 {[%emt 0:00:01]} Nf6 {[%emt 0:00:17][%cal Oe8c8]} 11. Nb5 {[%emt 0:01:00]} (11. Kh1 $15 Bd7 12. Nd2) 11... O-O-O $19 {[%emt 0:01:13][%cal Of6h5]} (11... Nxe4 $2 12. Bxc5 (12. Nxc7+ Kd7 $11) 12... O-O 13. Bd4 $18 (13. Bxa7 Nxf3+ 14. Qxf3 Bd7 $11)) 12. Nd2 {[%emt 0:00:26]} a6 {[%emt 0:00:12]} 13. Nd4 {[%emt 0:00:02]} Rhe8 {[%emt 0:00:21][%cal Of6h5] Black has more active pieces.} 14. b4 {[%emt 0:00:26]} (14. Bf4 $17) 14... Bb6 {[%emt 0:00:07]} ({Black should play} 14... Nh5 $1 $19 15. g3 (15. Bxh5 $2 Qxg2#) (15. bxc5 $2 Nxf3+ 16. Qxf3 Bg4 $19) 15... Nxf3+ 16. Qxf3 Bxd4 17. Bxd4 Bxf1 18. Rxf1 c5) 15. b5 {[%emt 0:00:06]} (15. Nf5 $17 {was called for.} Nxf3+ 16. Qxf3) 15... Nh5 {[%emt 0:00:16]} 16. g3 {[%emt 0:00:10]} (16. Bxh5 $2 Qxg2#) 16... Bxf1 $4 {[%emt 0:00:02][%mdl 8192]} (16... Nxf3+ $19 {and all is fine.} 17. Qxf3 Bxf1 18. Rxf1 axb5 19. Nxb5 Bxe3 20. Qxe3 Nf6) 17. Qxf1 $4 {[%emt 0:00:01][%mdl 8192] [#]} (17. Bxh5 $18 {is the narrow road to win.} Qf6 18. Qxf1 (18. Kxf1 axb5 19. h3 b4 $18)) 17... Nxf3+ $1 {[%emt 0:00:05]} 18. N2xf3 {[%emt 0:00:03]} Qxe4 $2 {[%emt 0:00:03]} (18... Rxe4 19. bxa6 bxa6 20. Qxa6+ Kd7 21. Qb5+ Kc8 22. a4 Rxe3 23. fxe3 $18) (18... a5 $19 {[%cal Oh5f6] Threatens to win with ...Nf6!.} 19. Nf5 Rxe4 20. Bxb6 cxb6 (20... Qxf5 $2 21. Nd4 $19)) 19. Nd2 {[%emt 0:00:02]} (19. bxa6 Nf6 20. Nd2 Qd5 $11) (19. Qh3+ $14 Rd7 20. Qxh5) 19... Qd5 {[%emt 0:00:03]} 20. c4 {[%emt 0:00:02]} Qe5 {[%emt 0:00:03]} 21. bxa6 $1 {[%emt 0:00:03]} Bxd4 {[%emt 0:00:01]} (21... Nf6 $5 22. Rb1 Qa5 (22... Bxd4 23. Nf3 $15) 23. axb7+ Kxb7 $11) 22. Bxd4 $4 {[%emt 0:00:02][%mdl 8192]} (22. axb7+ $11 {and White is okay.} Kxb7 23. Nf3 Bxa1 24. Nxe5 Bxe5 25. Qb1+ Ka8 26. Qb5) 22... Qxd4 {[%emt 0:00:01]} 23. Qh3+ {[%emt 0:00:01]} Kb8 {[%emt 0:00:07]} 24. Nb3 {[%emt 0:00:03][%cal Bd2b3,Bb3a5,Ba5c6,Bc6d8,Bd8f7,Bf7g5,Bg5h3,Bh3f4,Bf4d3][%mdl 32]} Qe5 {[%emt 0:00:00]} 25. axb7 {[%emt 0:00:02]} Nf6 {[%emt 0:00:00][%cal Oe5e4]} 26. Qg2 {[%emt 0:00:02]} Qe4 {[%emt 0:00:01]} 27. Na5 {[%emt 0:00:01]} Qxg2+ {[%emt 0:00:02]} 28. Kxg2 {[%emt 0:00:01]} Re5 $2 {[%emt 0:00:03]} (28... c5 $19 29. Rb1 Kc7) 29. Nc6+ $11 {[%emt 0:00:02]} Kxb7 {[%emt 0:00:01]} 30. Nxd8+ {[%emt 0:00:01][%mdl 4096] Endgame KRN-KRN} Kc8 {[%emt 0:00:02]} 31. Nxf7 {[%emt 0:00:01]} Re2 {[%emt 0:00:01]} 32. Ng5 {[%emt 0:00:03]} h6 {[%emt 0:00:01]} 33. Nh3 {[%emt 0:00:01][%cal Oc4c5]} Rc2 {[%emt 0:00:02]} 34. Nf4 {[%emt 0:00:04]} Ne4 {[%emt 0:00:01]} 35. Nd3 {[%emt 0:00:03]} Rxc4 {[%emt 0:00:02]} 36. Kf3 {[%emt 0:00:01]} Nf6 {[%emt 0:00:02]} 37. Rc1 {[%emt 0:00:02]} ({Better is} 37. a4 $15) 37... Ra4 $17 {[%emt 0:00:01]} 38. Rc2 {[%emt 0:00:01]} Ra3 {[%emt 0:00:02]} 39. Ke2 {[%emt 0:00:01]} Ne4 {[%emt 0:00:02]} 40. Nf4 {[%emt 0:00:03]} Kd7 {[%emt 0:00:01] Repels Ne6} 41. h4 {[%emt 0:00:05]} Nc3+ {[%emt 0:00:02]} 42. Kd2 {[%emt 0:00:02]} Nxa2 {[%emt 0:00:02]} 43. Nd3 $2 {[%emt 0:00:02][%mdl 8192] [#] Prevents Nb4} (43. Rb2 $17) 43... Rxd3+ $1 $19 {[%emt 0:00:02][%mdl 512]} 44. Kxd3 {[%emt 0:00:01] KR-KN} (44. Ke2 Ra3) 44... Nb4+ {[%emt 0:00:01]} 45. Kc3 {[%emt 0:00:01]} Nxc2 {[%emt 0:00:02]} 46. Kxc2 {[%emt 0:00:01] KP-KP. Black is a pawn up.} Ke6 {[%emt 0:00:01]} 47. Kd3 {[%emt 0:00:02]} Kd5 {[%emt 0:00:02] ( -> ...Ke5)} 48. h5 {[%emt 0:00:02]} c5 {[%emt 0:00:02]} 49. f4 {[%emt 0:00:01]} c4+ {[%emt 0:00:01]} 50. Ke3 {[%emt 0:00:01]} Ke6 {[%emt 0:00:07]} 51. Ke4 {[%emt 0:00:03]} d5+ {[%emt 0:00:01]} 52. Kd4 {[%emt 0:00:00]} Kf5 {[%emt 0:00:01]} 53. Ke3 {[%emt 0:00:02]} Kg4 {[%emt 0:00:02]} 54. Kf2 {[%emt 0:00:02]} d4 {[%emt 0:00:12]} 0-1

[Event "European Women Blitz-ch 2024"]
[Site "Monaco"]
[Date "2025.01.10"]
[Round "5.13"]
[White "Zhukova, Natalia"]
[Black "Gaponenko, Inna"]
[Result "1-0"]
[Annotator "TA"]
[ECO "D45"]
[WhiteElo "2306"]
[BlackElo "2346"]
[PlyCount "59"]
[EventDate "2025.01.06"]
[EventType "swiss"]
[EventCountry "MNC"]
[SourceTitle "playchess.com"]
[Source "ChessBase"]
[SourceQuality "1"]
[TimeControl "180+2"]

{[%evp 19,59,0,0,4,18,0,26,-12,25,33,72,75,72,38,85,0,27,21,31,37,81,80,77,89,81,66,67,71,79,62,135,127,166,117,190,45,183,188,570,579,579,351]} 1. c4 {[%emt 0:00:01]} e6 {[%emt 0:00:00]} 2. Nc3 {[%emt 0:00:01]} d5 {[%emt 0:00:01]} 3. d4 {[%emt 0:00:01]} c6 {[%emt 0:00:02]} 4. e3 {[%emt 0:00:05]} Nf6 {[%emt 0:00:01]} 5. Nf3 {[%emt 0:00:01]} Nbd7 {[%emt 0:00:01]} 6. Be2 {[%emt 0:00:02]} Bd6 {[%emt 0:00:04]} 7. O-O {[%emt 0:00:03]} O-O {[%emt 0:00:01]} 8. b3 {[%emt 0:00:03]} b6 {[%emt 0:00:04]} 9. Bb2 {[%emt 0:00:01]} Bb7 {[%emt 0:00:01]} 10. Qc2 {[%emt 0:00:04]} Rc8 {[%emt 0:00:09]} 11. Rad1 {[%emt 0:00:08]} Qe7 {[%emt 0:00:06]} 12. Bd3 {[%emt 0:00:05]} h6 {[%emt 0:00:11]} 13. Rfe1 {[%emt 0:00:17]} dxc4 {[%emt 0:00:42]} 14. bxc4 {[%emt 0:00:03]} c5 {[%emt 0:00:00] [#]} 15. d5 $1 {[%emt 0:00:31]} exd5 {[%emt 0:00:14]} 16. cxd5 {[%emt 0:00:01]} a6 {[%emt 0:00:47]} (16... Ne5 $14 {should be considered.}) 17. a4 {[%emt 0:00:05]} (17. Nh4 $16 {aiming for Nf5.} c4 18. Nf5) 17... c4 {[%emt 0:00:16]} 18. Bf5 {[%emt 0:00:03]} Rcd8 {[%emt 0:00:01]} 19. Bxd7 {[%emt 0:00:45]} Rxd7 {[%emt 0:00:12]} 20. e4 {[%emt 0:00:03]} Bb4 {[%emt 0:00:05]} 21. Nd4 {[%emt 0:00:23]} Re8 {[%emt 0:00:31][%cal Rb7d5]} 22. Re3 {[%emt 0:00:09]} g6 {[%emt 0:00:07] Prevents Nf5} (22... Bxc3 $2 23. Nf5 Qb4 24. Bxc3 $18) 23. Na2 {[%emt 0:00:11] Excellent horsemanship.} Bc5 {[%emt 0:00:01][%cal Rf6e4]} 24. Qxc4 {[%emt 0:00:02]} Rc8 {[%emt 0:00:02]} (24... b5 $14 25. axb5 axb5) 25. Qe2 $16 {[%emt 0:00:01] White is more active.} Qe8 {[%emt 0:00:08]} 26. Re1 {[%emt 0:00:19]} ({White should try} 26. h3 $18) 26... Kh7 {[%emt 0:00:01]} (26... Rdd8 $16 {keeps fighting.} 27. Nf5 gxf5) 27. Rh3 {[%emt 0:00:01]} (27. Nc1 $18) 27... h5 {[%emt 0:00:02]} (27... Nxe4 $1 $14 28. Qd3 (28. Qxe4 Qxe4 29. Rxe4 Rxd5 $16) 28... Nxf2 (28... Bxd5 $2 {too greedy.} 29. Rxh6+ Kg8 30. Qh3 $18) 29. Kxf2 Qh8 (29... Qd8 30. Qd2 $11)) 28. Nf3 $18 {[%emt 0:00:07]} Ng8 $2 {[%emt 0:00:02]} (28... Nxd5 29. exd5 Re7) 29. Ng5+ {[%emt 0:00:01]} Kh6 {[%emt 0:00:01]} 30. Qd2 {[%emt 0:00:03]} 1-0

[Event "European Women Blitz-ch 2024"]
[Site "Monaco"]
[Date "2025.01.10"]
[Round "5.14"]
[White "Rudzinska, Michalina"]
[Black "Socko, Monika"]
[Result "1-0"]
[Annotator "TA"]
[ECO "C01"]
[WhiteElo "2226"]
[BlackElo "2371"]
[PlyCount "67"]
[EventDate "2025.01.06"]
[EventType "swiss"]
[EventCountry "MNC"]
[SourceTitle "playchess.com"]
[Source "ChessBase"]
[SourceQuality "1"]
[TimeControl "180+2"]

{[%evp 10,67,0,-7,8,0,0,0,29,16,88,85,379,377,577,594,587,525,570,470,493,456,472,462,552,508,616,473,489,473,507,488,571,562,552,191,727,728,742,771,839,795,759,752,706,516,639,575,675,664,720,737,716,675,1142,1140,1308,1241,1352,1284]} 1. e4 {[%emt 0:00:01]} e6 {[%emt 0:00:00]} 2. d4 {[%emt 0:00:01]} d5 {[%emt 0:00:01]} 3. Bd3 {[%emt 0:00:01][%cal Bf1d3,Bd3e4,Be4f3][%mdl 32]} dxe4 {[%emt 0:00:05]} 4. Bxe4 {[%emt 0:00:01]} Nf6 {[%emt 0:00:02]} 5. Bf3 {[%emt 0:00:01]} c5 {[%emt 0:00:06]} 6. Ne2 {[%emt 0:00:02][%cal Bg1e2,Be2d4,Bd4b5,Bb5d6][%mdl 32]} cxd4 {[%emt 0:00:15]} 7. Nxd4 {[%emt 0:00:03]} Bc5 {[%emt 0:00:01]} 8. Be3 {[%emt 0:00:06]} Qe7 {[%emt 0:00:24] The position is equal.} 9. Nc3 {[%emt 0:00:11]} e5 {[%emt 0:00:06]} (9... O-O $11 {remains equal.}) 10. Ndb5 {[%emt 0:00:07] [#] And now Bxc5 would win. White is more active.} Bxe3 {[%emt 0:00:01][%mdl 8192]} (10... Bb4 $16) 11. Nd6+ $18 {[%emt 0:00:05]} (11. fxe3 Nc6 $14) 11... Kd7 {[%emt 0:00:12]} (11... Kf8 $142 12. Nxc8 (12. fxe3 Nc6 $14) 12... Bxf2+ 13. Kxf2 Qc5+ 14. Kg3 Qxc8 15. Qd6+ Ke8 16. Qxe5+ Kd8) 12. Nf5+ {[%emt 0:00:05]} (12. Nxb7+ Bd4 13. Na5 Ke6 14. Bxa8 Qc5 $17) (12. Nxf7+ Bd4 13. Nxh8 Ke8 $16) 12... Bd4 {[%emt 0:00:05]} 13. Nxe7 {[%emt 0:00:03]} Kxe7 {[%emt 0:00:01]} 14. O-O {[%emt 0:00:08] [#] Black must now prevent Nb5.} Nc6 {[%emt 0:00:00]} 15. Qe2 {[%emt 0:00:04]} Be6 {[%emt 0:00:02]} 16. Ne4 {[%emt 0:00:09]} Nd5 {[%emt 0:00:07]} 17. c3 {[%emt 0:00:03]} Nf4 {[%emt 0:00:04]} 18. Qc2 {[%emt 0:00:11]} Bb6 {[%emt 0:00:02]} 19. g3 {[%emt 0:00:03]} Ng6 {[%emt 0:00:09]} 20. b4 {[%emt 0:00:10]} Rhd8 {[%emt 0:00:07][%cal Bh8d8,Bd8d7,Bd7d6,Bd6c6,Bc6c5][%mdl 32]} 21. a4 {[%emt 0:00:05]} Rac8 {[%emt 0:00:04][%cal Oc6d4]} 22. a5 $2 {[%emt 0:00:03]} (22. Qe2) 22... Bc7 $2 {[%emt 0:00:14]} (22... Nd4 23. Qd1 (23. cxd4 $2 {too greedy.} Rxc2 24. axb6 axb6 $19) 23... Bb3) 23. Nc5 {[%emt 0:02:05] White is clearly winning.} Bd6 {[%emt 0:00:18]} 24. Nxb7 {[%emt 0:00:00][%cal Of3c6] aiming for Bxc6!} Rd7 {[%emt 0:00:01]} 25. Nxd6 {[%emt 0:00:00]} Rxd6 {[%emt 0:00:00]} 26. Bxc6 {[%emt 0:00:00]} Rdxc6 {[%emt 0:00:02]} 27. Ra3 {[%emt 0:00:00]} Bd5 {[%emt 0:00:10]} 28. Re1 {[%emt 0:00:00]} f6 {[%emt 0:00:11]} 29. b5 {[%emt 0:00:00][%cal Bb4b5,Bb5b6,Bb6b7][%mdl 32]} Rc5 {[%emt 0:00:06]} 30. b6 {[%emt 0:00:00]} a6 {[%emt 0:00:01]} 31. Qb2 {[%emt 0:00:00] Strongly threatening b7.} Kf7 {[%emt 0:00:01]} 32. b7 {[%emt 0:00:00]} Rb8 {[%emt 0:00:01]} 33. Qb6 {[%emt 0:00:00][%csl LRa6,LRc5]} Rc6 {[%emt 0:00:03]} 34. Qa7 {[%emt 0:00:00] White took control after the opening.   Weighted Error Value: White=0.37/Black=0.77.  Loses game:     	---       	Black=1      Mistake:       	White=1     	Black=3      Inaccurate:     	---       	Black=1      OK:         	White=6     	Black=3      Best:        	White=2     	Black=1} 1-0

[Event "European Women Blitz-ch 2024"]
[Site "Monaco"]
[Date "2025.01.10"]
[Round "5.15"]
[White "Hunt, Harriet V"]
[Black "Hrebenshchykova, Yelyzaveta"]
[Result "0-1"]
[Annotator "TA"]
[ECO "B50"]
[WhiteElo "2298"]
[BlackElo "2280"]
[PlyCount "80"]
[EventDate "2025.01.06"]
[EventType "swiss"]
[EventCountry "MNC"]
[SourceTitle "playchess.com"]
[Source "ChessBase"]
[SourceQuality "1"]
[TimeControl "180+2"]

{[%evp 15,80,-2,0,0,0,0,0,0,0,-20,-24,-27,-43,-44,0,0,44,-58,-47,-46,-28,-71,-27,-116,-58,-107,-114,-113,-102,-99,-81,-91,-85,-93,-85,-89,-64,-68,-37,-35,-36,-121,-43,-173,-68,-716,-165,-150,-20,-104,0,-124,-124,-124,-124,-193,-158,-259,-237,-233,-210,-278,-278,-278,-268,-29986,-29987]} 1. e4 {[%emt 0:00:01]} c5 {[%emt 0:00:00]} 2. Nf3 {[%emt 0:00:00]} e6 {[%emt 0:00:01]} 3. b3 {[%emt 0:00:01]} Nc6 {[%emt 0:00:16]} 4. Bb5 {[%emt 0:00:09]} Qc7 {[%emt 0:00:07]} 5. O-O {[%emt 0:00:11]} Nf6 {[%emt 0:00:21]} 6. Re1 {[%emt 0:00:16]} Be7 {[%emt 0:00:53]} 7. Bb2 {[%emt 0:00:06]} O-O {[%emt 0:00:03]} 8. Nc3 {[%emt 0:00:11]} d6 {[%emt 0:00:03]} 9. Bxc6 {[%emt 0:00:26]} Qxc6 {[%emt 0:00:01]} 10. d4 {[%emt 0:00:03]} cxd4 {[%emt 0:00:02]} 11. Nxd4 {[%emt 0:00:01]} Qd7 {[%emt 0:00:21]} 12. f4 {[%emt 0:00:07]} b6 {[%emt 0:00:11]} 13. Qf3 {[%emt 0:00:15]} Bb7 {[%emt 0:00:01]} 14. Rad1 {[%emt 0:00:01]} a6 {[%emt 0:00:09]} 15. Qg3 $1 {[%emt 0:00:08][%cal Oc3d5]} Qc7 {[%emt 0:00:02]} 16. e5 {[%emt 0:00:13]} (16. Nd5 $1 $14 Qd8 (16... exd5 17. Nf5 $16) 17. Nxe7+ Qxe7 18. e5 dxe5 19. Rxe5) 16... dxe5 $15 {[%emt 0:00:03]} 17. fxe5 {[%emt 0:00:02]} Nd7 {[%emt 0:00:04]} 18. Kh1 {[%emt 0:00:10]} Rad8 {[%emt 0:00:10][%cal Od7e5]} (18... Rfe8 $5) 19. a3 {[%emt 0:00:10]} (19. Ne4 $11 {remains equal.}) 19... Nb8 {[%emt 0:00:08]} ({Black should play} 19... Nxe5 $17 20. Bc1 (20. Rxe5 $2 Bf6 $19) (20. Qxe5 $2 Qxe5 21. Rxe5 Bf6 $19) 20... Bd6) 20. Ne4 {[%emt 0:00:08] Against Bd6} (20. Bc1 $15 {was preferable.}) 20... Bxe4 $1 $17 {[%emt 0:00:05]} 21. Rxe4 {[%emt 0:00:01]} Nc6 {[%emt 0:00:00]} 22. c4 {[%emt 0:00:20]} Rd7 {[%emt 0:00:18]} 23. Ra1 {[%emt 0:00:23]} Nxd4 {[%emt 0:00:02]} 24. Rxd4 {[%emt 0:00:02]} Rfd8 {[%emt 0:00:03]} 25. Rxd7 {[%emt 0:00:02]} Rxd7 {[%emt 0:00:01]} 26. Qf3 {[%emt 0:00:10]} a5 {[%emt 0:00:06][%cal Oa5a4]} 27. Rf1 {[%emt 0:00:04]} Bf8 {[%emt 0:00:02][%cal Oa5a4]} 28. Qe3 {[%emt 0:00:14]} (28. a4 $15) 28... Bc5 {[%emt 0:00:06]} (28... a4 $1 $17 {[%cal Ob6b5]} 29. h3 axb3 30. Qxb3 h6) 29. Qf4 {[%emt 0:00:01]} (29. Qf3 $1 $15) 29... g6 {[%emt 0:00:02]} (29... Rd3 $19 30. b4 axb4 31. axb4 Bxb4) 30. g3 $2 {[%emt 0:00:00][%mdl 8192]} (30. Qf3 $15) 30... h5 $2 {[%emt 0:00:03]} (30... Qc6+ 31. Rf3 Qb7) 31. Qf3 $19 {[%emt 0:00:01] [#]} Rd2 {[%emt 0:00:02]} (31... a4 $1 $17 {[%cal Ra4b3] ...axb3 would now be deadly.} 32. b4 (32. Qa8+ $2 Rd8 $19) 32... Bd4 33. Bxd4 Rxd4 34. Qa8+ Kg7) 32. Bc3 {[%emt 0:00:01]} (32. Bc1 $1 $11 {was the only way to keep the balance.} Rd7 33. Qa8+ Bf8 34. a4) 32... Rd7 {[%emt 0:00:08] Black is more active.} (32... Rc2 $17 33. b4 axb4 34. axb4 Bf8) 33. b4 {[%emt 0:00:00]} (33. Bb2 $11) 33... axb4 $17 {[%emt 0:00:02]} 34. axb4 {[%emt 0:00:01]} Bd4 {[%emt 0:00:02]} 35. Bxd4 {[%emt 0:00:05]} (35. Rd1 $17 Qxc4 36. Kg2) 35... Rxd4 {[%emt 0:00:00] KQR-KQR} 36. c5 {[%emt 0:00:01]} (36. Ra1 $17 {was called for.}) 36... bxc5 {[%emt 0:00:01]} (36... Qxe5 37. Qxf7+ (37. cxb6 Qd5 $15) 37... Kh8 38. Qf8+ (38. cxb6 Qe4+ 39. Kg1 Qe3+ 40. Rf2 Qe1+ 41. Kg2 Qe4+ 42. Rf3 Rxb4 $11) 38... Kh7 39. Rf7+) 37. bxc5 {[%emt 0:00:00] [#]} Rc4 $1 {[%emt 0:00:03] Inhibits Rc1.} (37... Qxe5 38. Qxf7+ Kh8 39. Qf8+ (39. Qxg6 Qd5+ 40. Kg1 Rd1 $16) 39... Kh7 40. Rf7+) 38. Ra1 {[%emt 0:00:04]} Rxc5 {[%emt 0:00:04]} (38... Qxc5 $2 {perishes.} 39. Ra8+ Kh7 40. Qxf7+ Kh6 41. Rh8+ (41. Qxe6 {is a self mate.} Rc1+ 42. Kg2 Qg1+ 43. Kf3 Rc3+ 44. Ke2 Re3+ 45. Kd2 Qf2+ 46. Kd1 Re1#) 41... Kg5 42. Qf6+ (42. Qxe6 Rc1+ 43. Kg2 Qg1+ 44. Kf3 Rc3+ 45. Ke2 Re3+ 46. Kd2 Qf2+ 47. Kd1 Re1#) 42... Kg4 43. Qxg6+ Kf3 44. Qf7+ (44. Qxh5+ Kf2 $18) 44... Ke2 45. Kg2 $18 (45. Qxh5+ Ke1 $16) (45. Qxe6 Qd4)) 39. Ra8+ {[%emt 0:00:01]} Kh7 {[%emt 0:00:01]} 40. Qf6 $2 {[%emt 0:00:12] Inhibits Rc3.} (40. Ra2 $19) 40... Qc6+ {[%emt 0:00:01]} ({Worse is} 40... Qxe5 41. Rh8#) 0-1